fUST/lending_fUST_20260102
["ID","MTS","AMOUNT","RATE_DAILY","PERIOD"]
[400308588,1767341959840,-500.0,0.00037044,60]
[400308589,1767341959913,-500.0,0.00037044,60]
[400308590,1767341959983,-500.0,0.00037044,60]
[400308591,1767341960056,-585.4606675,0.00037044,60]
[400308592,1767341960129,-250.25143391,0.00037044,60]
[400308593,1767341960653,322.16750061,0.00037044,30]
[400308594,1767341960743,465.52675762,0.00037044,60]
[400308595,1767341960819,34423.68122699,0.00037044,30]
[400308596,1767341961117,500.0,0.00037044,60]
[400308597,1767341961201,500.0,0.00037044,60]
[400308598,1767341961316,500.0,0.00037044,60]
[400308599,1767341961420,500.0,0.00037044,60]
[400308600,1767341961512,500.0,0.00037044,60]
[400308601,1767341961633,500.0,0.00037044,60]
[400308602,1767341961722,500.0,0.00037044,60]
[400308603,1767341961800,500.0,0.00037044,60]
[400308604,1767341961958,500.0,0.00037044,60]
[400308605,1767341962034,500.0,0.00037044,60]
[400308606,1767341962107,615.39439252,0.00037044,60]
[400308607,1767341962220,500.0,0.00037044,60]
[400308608,1767341962303,500.0,0.00037044,60]
[400308609,1767341962380,500.0,0.00037044,60]
[400308610,1767341962463,500.0,0.00037044,60]
[400308611,1767341962540,500.0,0.00037044,60]
[400308612,1767341962611,321.46,0.00037044,60]
[400308613,1767341962688,500.0,0.00037044,60]
[400308614,1767341962761,500.0,0.00037044,60]
[400308615,1767341962830,500.0,0.00037044,60]
[400308616,1767341962905,500.0,0.00037044,60]
[400308617,1767341962974,500.0,0.00037044,60]
[400308618,1767341963052,500.0,0.00037044,60]
[400308619,1767341963125,576.87403845,0.00037044,60]
[400308620,1767341963203,500.0,0.00037044,60]
[400308621,1767341963280,546.29934704,0.00037044,60]
[400308622,1767341963377,500.0,0.00037044,60]
[400308623,1767341963467,500.0,0.00037044,60]
[400308624,1767341963558,500.0,0.00037044,60]
[400308625,1767341963662,500.0,0.00037044,60]
[400308626,1767341963755,500.0,0.00037044,60]
[400308627,1767341963845,244.52017604,0.00037044,60]
[400308628,1767341963926,500.0,0.00037044,60]
[400308629,1767341964031,500.0,0.00037044,60]
[400308630,1767341964125,500.0,0.00037044,60]
[400308631,1767341964199,500.0,0.00037044,60]
[400308632,1767341964282,574.3967193,0.00037044,60]
[400308633,1767341964396,500.0,0.00037044,60]
[400308634,1767341964490,500.0,0.00037044,60]
[400308635,1767341964579,500.0,0.00037044,60]
[400308636,1767341964747,500.0,0.00037044,60]
[400308637,1767341980121,-150.0,0.00013123,30]
[400308638,1767341980211,-271.99,0.00014316,30]
[400308639,1767341980294,-407.99,0.00015509,30]
[400308640,1767341980387,-543.99,0.00016702,30]
[400308641,1767341980546,-679.98,0.00017895,30]
[400308642,1767341980637,-815.98,0.00019088,30]
[400308643,1767341980729,-160.54313027,0.0002,30]
[400308644,1767341980802,-951.97,0.00020281,30]
[400308645,1767341980876,-200.0,0.00021458,30]
[400308646,1767341980964,-200.0,0.00021458,30]
[400308647,1767341981035,-201.79372357,0.00021458,30]
[400308648,1767341981104,-1087.97,0.00021474,30]
[400308649,1767341981178,-1223.97,0.00022667,30]
[400308650,1767341981249,-204.45436091,0.00022974,32]
[400308651,1767341981324,-204.45436091,0.00023109,40]
[400308652,1767341981407,-204.45436091,0.00023244,48]
[400308653,1767341981486,-316.56086126,0.00023379,56]
[400308654,1767341981558,-204.45436091,0.00023379,56]
[400308655,1767341981634,-204.45436091,0.00023514,63]
[400308656,1767341981704,-222.11697863,0.00023615,30]
[400308657,1767341981771,-204.45436086,0.00023615,110]
[400308658,1767341981833,-204.45436091,0.00023649,71]
[400308659,1767341981896,-204.45436091,0.00023784,79]
[400308660,1767341981961,-1345.96296875,0.0002386,30]
[400308661,1767341982024,-204.45436091,0.00023919,86]
[400308662,1767341982090,-894.88872184,0.00024,60]
[400308663,1767341982159,-204.45436091,0.00024054,94]
[400308664,1767341982221,-204.45436091,0.00024189,102]
[400308665,1767341982287,-316.56086126,0.00024323,110]
[400308666,1767341982362,-159.19295323,0.00024323,30]
[400308667,1767341982441,-159.08614826,0.00024323,30]
[400308668,1767341982516,-200.0,0.00024938,30]
[400308669,1767341982591,-200.0,0.00024938,30]
[400308670,1767341982666,-200.0,0.00024938,30]
[400308671,1767341982738,-1041.66666667,0.00025,30]
[400308672,1767341982809,-1000.0,0.0002712,30]
[400308673,1767341982880,-1000.0,0.0002712,30]
[400308674,1767341982949,-1000.0,0.0002712,30]
[400308675,1767341983019,-715.0,0.0002712,30]
[400308676,1767341983208,-1000.0,0.00028493,30]
[400308677,1767341983279,-1000.0,0.00028493,30]
[400308678,1767341983355,-1000.0,0.00028493,30]
[400308679,1767341983432,-1000.0,0.00028493,30]
[400308680,1767341983506,-1000.0,0.00028493,30]
[400308681,1767341983581,-1000.0,0.00028493,30]
[400308682,1767341983656,-1000.0,0.00028493,30]
[400308683,1767341983731,-1000.0,0.00028493,30]
[400308684,1767341983802,-1000.0,0.00028493,30]
[400308685,1767341983877,-1000.0,0.00028493,30]
[400308686,1767341983947,-1000.0,0.00028493,30]
[400308687,1767341984016,-1000.0,0.00028493,30]
[400308688,1767341984084,-1000.0,0.00028493,30]
[400308689,1767341984156,-1000.0,0.00028493,30]
[400308690,1767341984225,-1000.0,0.00028493,30]
[400308691,1767341984297,-1000.0,0.00028493,30]
[400308692,1767341984377,-1000.0,0.00028493,30]
[400308693,1767341984473,-1000.0,0.00028493,30]
[400308694,1767341984577,-1000.0,0.00028493,30]
[400308695,1767341984675,-1000.0,0.00028493,30]
[400308696,1767341984762,-1000.0,0.00028493,30]
[400308697,1767341984850,-1000.0,0.00028493,30]
[400308698,1767341984942,-836.29705049,0.00028493,30]
[400308699,1767341985029,-157.0,0.00028685,30]
[400308700,1767341985117,-5770.77337415,0.0002876,30]
[400308701,1767341985205,-175.967554,0.00028767,60]
[400308702,1767341985294,-1041.66666667,0.00029,30]
[400308703,1767341985402,-199.0,0.00029781,36]
[400308704,1767341985508,-1000.0,0.00029832,30]
[400308705,1767341985598,-1000.0,0.00029832,30]
[400308706,1767341985675,-1000.0,0.00029832,30]
[400308707,1767341985749,-200.0,0.00029925,120]
[400308708,1767341985820,-200.0,0.00029925,120]
[400308709,1767341985891,-200.0,0.00029925,120]
[400308710,1767341985959,-239.0,0.0003,120]
[400308711,1767341986029,-2419.06185529,0.0003,30]
[400308712,1767341986289,-1875.0,0.0003,68]
[400308713,1767341986370,-4404.65626909,0.0003,120]
[400308714,1767341986444,-26690.05505472,0.0003,120]
[400308715,1767341986518,-1041.66666667,0.0003,30]
[400308716,1767341986594,-50000.0,0.00030137,120]
[400308717,1767341986668,-632.64,0.00030958,30]
[400308718,1767341986738,-193.84436354,0.00030959,30]
[400308719,1767341986807,-20094.84365894,0.00031,120]
[400308720,1767341986872,-1041.66666667,0.00031,120]
[400308721,1767341986939,-6521.20076393,0.00031246,31]
[400308722,1767341987008,-193.84436354,0.0003137,30]
[400308723,1767341987079,-170.1145297,0.0003137,30]
[400308724,1767341987148,-211.0,0.00031425,46]
[400308725,1767341987218,-632.64,0.00031506,31]
[400308726,1767341987288,-193.84436354,0.00031781,30]
[400308727,1767341987363,-357.93444462,0.0003199,120]
[400308728,1767341987439,-211.3,0.00031999,30]
[400308729,1767341987522,-1000.0,0.00032,120]
[400308730,1767341987609,-200.0,0.00032,120]
[400308731,1767341987696,-161.0,0.00032,120]
[400308732,1767341987765,-30006.163335,0.00032,120]
[400308733,1767341987836,-150.0,0.00032,120]
[400308734,1767341987906,-2714.0,0.00032,38]
[400308735,1767341987977,-632.64,0.00032054,32]
[400308736,1767341988048,-632.64,0.00032602,33]
[400308737,1767341988118,-2500.0,0.000327,120]
[400308738,1767341988192,-2793182.32803574,0.00032844,30]
[400308739,1767341992910,-525.25283993,0.00032883,120]
[400308740,1767341992985,-2999474.74716007,0.00032968,30]
[400308741,1767341996407,-645.5,0.00032968,30]
[400308742,1767341996493,-375.0,0.00032968,30]
[400308743,1767341996586,-2998979.5,0.00032968,30]
[400308744,1767341999458,-343.5,0.00032968,30]
[400308745,1767341999531,-281.0,0.00032968,30]
[400308746,1767341999610,-2999375.5,0.00032968,30]
[400308747,1767342002598,-840.5,0.00032968,30]
[400308748,1767342002674,-2999159.5,0.00032968,30]
[400308749,1767342006103,-3000000.0,0.00032968,30]
[400308750,1767342049864,-150.0,0.00031523,30]
[400308751,1767342049952,-183.597466,0.00032968,31]
[400308752,1767342050038,-183.597466,0.00032968,31]
[400308753,1767342050117,-183.597466,0.00032968,31]
[400308754,1767342050203,-151.0,0.00032968,31]
[400308755,1767342050285,-183.597457,0.00032968,31]
[400308756,1767342050386,-151.0,0.00032968,31]
[400308757,1767342050481,-623.587389,0.00032968,31]
[400308758,1767342050571,-623.587389,0.00032968,31]
[400308759,1767342050662,-151.0,0.00032968,31]
[400308760,1767342050752,-623.587389,0.00032968,31]
[400308761,1767342050844,-623.587392,0.00032968,31]
[400308762,1767342050926,-153.387215,0.00032968,31]
[400308763,1767342050999,-151.0,0.00032968,31]
[400308764,1767342051073,-151.0,0.00032968,31]
[400308765,1767342051154,-301.419119,0.00032968,31]
[400308766,1767342051230,-13621.72926608,0.00033,120]
[400308767,1767342051316,-150.0,0.00033,120]
[400308768,1767342051403,-11110.36493153,0.00033,30]
[400308769,1767342051483,-632.64,0.0003315,34]
[400308770,1767342051566,-217.78607282,0.000332,117]
[400308771,1767342051653,-217.78607282,0.000332,117]
[400308772,1767342051732,-217.78607282,0.000332,117]
[400308773,1767342051811,-217.78607282,0.000332,117]
[400308774,1767342051898,-217.78607282,0.000332,117]
[400308775,1767342051985,-5747.4303,0.0003322,30]
[400308776,1767342052077,-1329541.3481,0.0003344,30]
[400308777,1767342052166,-162.0,0.00033616,62]
[400308778,1767342052255,-632.64,0.00033698,35]
[400308779,1767342052340,-474.0,0.0003395,120]
[400308780,1767342052427,-200.0,0.00034,120]
[400308781,1767342052522,-150.0,0.00034,120]
[400308782,1767342052624,-632.64,0.00034246,36]
[400308783,1767342052727,-190.39,0.00034389,30]
[400308784,1767342052813,-1107951.1234,0.0003444,30]
[400308785,1767342052902,-203.0,0.0003449,38]
[400308786,1767342052995,-25208.13336519,0.000345,30]
[400308787,1767342053093,-7021.10934585,0.00034504,60]
[400308788,1767342053188,-314.99,0.0003453,60]
[400308789,1767342053277,-314.99,0.0003463,60]
[400308790,1767342053378,-632.64,0.00034794,37]
[400308791,1767342053474,-314.99,0.0003483,60]
[400308792,1767342053572,-400.0,0.000349,120]
[400308793,1767342053670,-200.61641,0.00035,120]
[400308794,1767342053755,-151.62700906,0.00035,120]
[400308795,1767342053837,-26286.94111316,0.00035,120]
[400308796,1767342053930,-1334.47,0.00035,120]
[400308797,1767342054031,-3552.4184,0.00035,120]
[400308798,1767342054116,-150.0,0.00035,120]
[400308799,1767342054201,-200.0,0.00035,120]
[400308800,1767342054280,-1120.73282215,0.00035,30]
[400308801,1767342054377,-224.0,0.00035,120]
[400308802,1767342054475,-5000.0,0.00035,40]
[400308803,1767342054564,-150.0,0.00035,69]
[400308804,1767342054652,-965.73,0.0003513,60]
[400308805,1767342054739,-314.99,0.0003523,60]
[400308806,1767342054815,-200.0,0.00035274,120]
[400308807,1767342054896,-314.99,0.0003533,60]
[400308808,1767342054985,-632.64,0.00035342,38]
[400308809,1767342055076,-314.99,0.0003543,60]
[400308810,1767342055157,-877497.2898,0.0003544,30]
[400308811,1767342055234,-200.0,0.00035493,120]
[400308812,1767342055313,-314.99,0.0003553,60]
[400308813,1767342055413,-200.0,0.00035582,120]
[400308814,1767342055513,-200.0,0.00035629,120]
[400308815,1767342055616,-200.0,0.00035692,120]
[400308816,1767342055707,-200.0,0.000358,120]
[400308817,1767342055796,-510.88,0.000358,60]
[400308818,1767342055879,-174.0,0.00035808,82]
[400308819,1767342055959,-314.99,0.0003583,60]
[400308820,1767342056038,-200.0,0.00035871,120]
[400308821,1767342056116,-632.64,0.0003589,39]
[400308822,1767342056194,-310.43946311,0.000359,40]
[400308823,1767342056273,-314.99,0.0003593,60]
[400308824,1767342056371,-501.0,0.0003595,120]
[400308825,1767342056462,-1657.0,0.00036,120]
[400308826,1767342056552,-379.7887932,0.00036,120]
[400308827,1767342056649,-150.0,0.00036,120]
[400308828,1767342056736,-995.62,0.00036,30]
[400308829,1767342056937,-50080.0,0.00036,30]
[400308830,1767342057009,-250.35680724,0.00036,120]
[400308831,1767342057088,-200.0,0.00036077,120]
[400308832,1767342057169,-314.99,0.0003623,60]
[400308833,1767342057253,-200.0,0.0003637,120]
[400308834,1767342057338,-314.99,0.0003643,60]
[400308835,1767342057436,-632.64,0.00036438,40]
[400308836,1767342057537,-797724.8089,0.0003644,30]
[400308837,1767342057643,-314.99,0.0003653,60]
[400308838,1767342057742,-117417.0,0.000366,30]
[400308839,1767342057830,-2072.87932522,0.000368,60]
[400308840,1767342057918,-314.99,0.0003683,60]
[400308841,1767342057997,-120130.16679813,0.00036877,30]
[400308842,1767342058075,-1150.0,0.00036968,30]
[400308843,1767342058153,-520.0,0.00036981,30]
[400308844,1767342058236,-632.64,0.00036986,41]
[400308845,1767342058328,-1505.0,0.00037,120]
[400308846,1767342058428,-153.25453041,0.00037,120]
[400308847,1767342058529,-175.34818034,0.00037,120]
[400308848,1767342058629,-177.71331242,0.00037,120]
[400308849,1767342058715,-223.58873352,0.00037,120]
[400308850,1767342058793,-161.86536739,0.00037,120]
[400308851,1767342058871,-183.53194587,0.00037,120]
[400308852,1767342058947,-180.65011172,0.00037,120]
[400308853,1767342059025,-342.15229797,0.00037,120]
[400308854,1767342059120,-199.53059961,0.00037,120]
[400308855,1767342059203,-162.82763974,0.00037,120]
[400308856,1767342059286,-222.10379647,0.00037,120]
[400308857,1767342059378,-161.34008523,0.00037,120]
[400308858,1767342059466,-192.05107545,0.00037,120]
[400308859,1767342059554,-150.0,0.00037,120]
[400308860,1767342059648,-778.72,0.00037,120]
[400308861,1767342059727,-1096.78010242,0.00037,120]
[400308862,1767342059808,-1456.48795005,0.00037,120]
[400308863,1767342059886,-184.44805127,0.00037,120]
[400308864,1767342059963,-151.0,0.00037043,60]
[400308865,1767342060042,-250.0,0.00037043,60]
[400308866,1767342060131,-274.44745446,0.00037043,60]
[400308867,1767342060229,-250.0,0.00037043,60]
[400308868,1767342060332,-414.0,0.00037043,60]
[400308869,1767342060435,-250.0,0.00037043,60]
[400308870,1767342060532,-250.0,0.00037043,60]
[400308871,1767342060626,-151.0,0.00037043,60]
[400308872,1767342060721,-429.318,0.00037043,60]
[400308873,1767342060809,-250.0,0.00037043,60]
[400308874,1767342060904,-250.0,0.00037043,60]
[400308875,1767342060995,-151.0,0.00037043,60]
[400308876,1767342061081,-445.202766,0.00037043,60]
[400308877,1767342061163,-250.0,0.00037043,60]
[400308878,1767342061246,-151.0,0.00037043,60]
[400308879,1767342061336,-250.0,0.00037043,60]
[400308880,1767342061430,-461.67526834,0.00037043,60]
[400308881,1767342061517,-250.0,0.00037043,60]
[400308882,1767342061608,-250.0,0.00037043,60]
[400308883,1767342061692,-151.0,0.00037043,60]
[400308884,1767342061781,-250.0,0.00037043,60]
[400308885,1767342061868,-250.0,0.00037043,60]
[400308886,1767342061949,-160.0,0.00037043,60]
[400308887,1767342062030,-478.75725327,0.00037043,60]
[400308888,1767342062112,-250.0,0.00037043,60]
[400308889,1767342062198,-2000.0,0.00037043,60]
[400308890,1767342062295,-250.0,0.00037043,60]
[400308891,1767342062400,-250.0,0.00037043,60]
[400308892,1767342062487,-154.01029508,0.00037043,60]
[400308893,1767342062575,-250.0,0.00037043,60]
[400308894,1767342062661,-160.73423008,0.00037043,60]
[400308895,1767342062740,-250.0,0.00037043,60]
[400308896,1767342062821,-496.47127164,0.00037043,60]
[400308897,1767342062901,-250.0,0.00037043,60]
[400308898,1767342062989,-250.0,0.00037043,60]
[400308899,1767342063079,-250.0,0.00037043,60]
[400308900,1767342063183,-2074.0,0.00037043,60]
[400308901,1767342063289,-250.0,0.00037043,60]
[400308902,1767342063400,-250.0,0.00037043,60]
[400308903,1767342063510,-514.84070869,0.00037043,60]
[400308904,1767342063621,-256.26539628,0.00037043,60]
[400308905,1767342063729,-250.0,0.00037043,60]
[400308906,1767342063827,-250.0,0.00037043,60]
[400308907,1767342063925,-2150.738,0.00037043,60]
[400308908,1767342064019,-250.0,0.00037043,60]
[400308909,1767342064116,-250.0,0.00037043,60]
[400308910,1767342064215,-533.88981491,0.00037043,60]
[400308911,1767342064311,-393.16075382,0.00037043,60]
[400308912,1767342064419,-250.0,0.00037043,60]
[400308913,1767342064521,-2230.315306,0.00037043,60]
[400308914,1767342064629,-250.0,0.00037043,60]
[400308915,1767342064732,-250.0,0.00037043,60]
[400308916,1767342064821,-553.64373807,0.00037043,60]
[400308917,1767342064914,-250.0,0.00037043,60]
[400308918,1767342065023,-2312.83697232,0.00037043,60]
[400308919,1767342065242,-250.0,0.00037043,60]
[400308920,1767342065383,-250.0,0.00037043,60]
[400308921,1767342065484,-574.12855637,0.00037043,60]
[400308922,1767342065583,-250.0,0.00037043,60]
[400308923,1767342065672,-2398.4119403,0.00037043,60]
[400308924,1767342065756,-265.5469825,0.00037043,60]
[400308925,1767342065840,-250.0,0.00037043,60]
[400308926,1767342065920,-151.0,0.00037043,60]
[400308927,1767342066002,-595.37131296,0.00037043,60]
[400308928,1767342066080,-250.0,0.00037043,60]
[400308929,1767342066163,-2487.15318209,0.00037043,60]
[400308930,1767342066246,-151.0,0.00037043,60]
[400308931,1767342066329,-269.20773989,0.00037043,60]
[400308932,1767342066417,-617.40005154,0.00037043,60]
[400308933,1767342066502,-250.0,0.00037043,60]
[400308934,1767342066593,-250.0,0.00037043,60]
[400308935,1767342066686,-2579.17784983,0.00037043,60]
[400308936,1767342066764,-151.0,0.00037043,60]
[400308937,1767342066838,-640.24385345,0.00037043,60]
[400308938,1767342066911,-151.0,0.00037043,60]
[400308939,1767342066984,-293.6597111,0.00037043,60]
[400308940,1767342067060,-252.27371363,0.00037043,60]
[400308941,1767342067135,-2674.60743027,0.00037043,60]
[400308942,1767342067209,-151.0,0.00037043,60]
[400308943,1767342067289,-663.93287602,0.00037043,60]
[400308944,1767342067380,-151.0,0.00037043,60]
[400308945,1767342067474,-261.89878038,0.00037043,60]
[400308946,1767342067573,-2773.56790519,0.00037043,60]
[400308947,1767342067667,-688.49839244,0.00037043,60]
[400308948,1767342067749,-151.0,0.00037043,60]
[400308949,1767342067822,-2876.18991768,0.00037043,60]
[400308950,1767342067899,-713.97283296,0.00037043,60]
[400308951,1767342067976,-151.0,0.00037043,60]
[400308952,1767342068056,-300.0,0.00037043,60]
[400308953,1767342068138,-2982.60894464,0.00037043,60]
[400308954,1767342068219,-740.38982778,0.00037043,60]
[400308955,1767342068303,-151.0,0.00037043,60]
[400308956,1767342068399,-363.76873974,0.00037043,60]
[400308957,1767342068485,-3092.96547559,0.00037043,60]
[400308958,1767342068577,-810.31764275,0.00037043,60]
[400308959,1767342068661,-151.0,0.00037043,60]
[400308960,1767342068743,-151.0,0.00037043,60]
[400308961,1767342068824,-151.0,0.00037043,60]
[400308962,1767342068903,-3207.40519818,0.00037043,60]
[400308963,1767342068985,-151.0,0.00037043,60]
[400308964,1767342069064,-156.587,0.00037043,60]
[400308965,1767342069143,-154.51700572,0.00037043,60]
[400308966,1767342069219,-151.0,0.00037043,60]
[400308967,1767342069298,-3326.07919052,0.00037043,60]
[400308968,1767342069390,-151.0,0.00037043,60]
[400308969,1767342069478,-151.0,0.00037043,60]
[400308970,1767342069567,-162.380719,0.00037043,60]
[400308971,1767342069656,-151.0,0.00037043,60]
[400308972,1767342069745,-3449.14412057,0.00037043,60]
[400308973,1767342069834,-151.0,0.00037043,60]
[400308974,1767342069921,-151.0,0.00037043,60]
[400308975,1767342070003,-168.3888056,0.00037043,60]
[400308976,1767342070080,-151.0,0.00037043,60]
[400308977,1767342070152,-3576.76245303,0.00037043,60]
[400308978,1767342070224,-151.0,0.00037043,60]
[400308979,1767342070303,-151.0,0.00037043,60]
[400308980,1767342070385,-152.01682942,0.00037043,60]
[400308981,1767342070468,-174.61919141,0.00037043,60]
[400308982,1767342070557,-151.0,0.00037043,60]
[400308983,1767342070649,-3709.10266379,0.00037043,60]
[400308984,1767342070729,-151.0,0.00037043,60]
[400308985,1767342070807,-2958.87348014,0.00037043,60]
[400308986,1767342070882,-296.74991761,0.00037043,60]
[400308987,1767342070957,-151.0,0.00037043,60]
[400308988,1767342071030,-3846.33946235,0.00037043,60]
[400308989,1767342071102,-151.0,0.00037043,60]
[400308990,1767342071176,-3988.65402246,0.00037043,60]
[400308991,1767342071252,-151.0,0.00037043,60]
[400308992,1767342071330,-152.22217906,0.00037043,60]
[400308993,1767342071411,-151.63027739,0.00037043,60]
[400308994,1767342071491,-651.48146279,0.00037043,60]
[400308995,1767342071572,-1000.0,0.00037044,60]
[400308996,1767342071662,-1000.0,0.00037044,60]
[400308997,1767342071740,-369.0,0.0003707,120]
[400308998,1767342071820,-200.0,0.0003707,120]
[400308999,1767342071899,-965.73,0.0003713,60]
[400309000,1767342071983,-314.99,0.0003713,60]
[400309001,1767342072190,-314.99,0.0003723,60]
[400309002,1767342072266,-285.59,0.00037254,30]
[400309003,1767342072344,-200.0,0.00037294,120]
[400309004,1767342072425,-12694.98296624,0.000373,120]
[400309005,1767342072501,-227.64473368,0.0003733,31]
[400309006,1767342072584,-314.99,0.0003733,60]
[400309007,1767342072661,-156.587,0.00037375,31]
[400309008,1767342072737,-151.0,0.00037376,30]
[400309009,1767342072815,-314.99,0.0003743,60]
[400309010,1767342072900,-150.0,0.000375,120]
[400309011,1767342072981,-775.0,0.000375,75]
[400309012,1767342073064,-314.99,0.0003753,60]
[400309013,1767342073145,-2000.0,0.00037534,120]
[400309014,1767342073232,-632.64,0.00037534,42]
[400309015,1767342073318,-5276.0,0.0003758,120]
[400309016,1767342073405,-200.0,0.00037608,120]
[400309017,1767342073485,-314.99,0.0003763,60]
[400309018,1767342073566,-200.0,0.00037664,120]
[400309019,1767342073648,-314.99,0.0003773,60]
[400309020,1767342073730,-1310.34,0.0003776,60]
[400309021,1767342073808,-200.0,0.00037769,120]
[400309023,1767342073886,-2000.0,0.00037808,120]
[400309024,1767342073961,-2000.0,0.00037808,120]
[400309025,1767342074038,-314.99,0.0003783,60]
[400309026,1767342074125,-200.0,0.00037839,120]
[400309027,1767342074210,-1310.34,0.0003786,60]
[400309028,1767342074291,-2000.0,0.000379,120]
[400309029,1767342074381,-528.0,0.0003795,120]
[400309030,1767342074468,-200.0,0.00037955,120]
[400309031,1767342074553,-1310.34,0.0003796,60]
[400309032,1767342074648,-400.0,0.00038,120]
[400309033,1767342074728,-250.0,0.00038,120]
[400309034,1767342074804,-6000.0,0.00038,80]
[400309035,1767342074883,-314.99,0.0003803,60]
[400309036,1767342074970,-1310.34,0.0003806,60]
[400309037,1767342075054,-200.0,0.00038078,120]
[400309038,1767342075131,-2000.0,0.00038082,120]
[400309039,1767342075210,-632.64,0.00038082,43]
[400309040,1767342075288,-1314.0,0.00038082,120]
[400309041,1767342075377,-328.6654,0.000381,120]
[400309042,1767342075463,-177.71331242,0.000381,120]
[400309043,1767342075551,-223.58873352,0.000381,120]
[400309044,1767342075648,-161.86536739,0.000381,120]
[400309045,1767342075732,-342.15229797,0.000381,120]
[400309046,1767342075815,-199.53059961,0.000381,120]
[400309047,1767342075894,-162.82763974,0.000381,120]
[400309048,1767342075968,-222.10379647,0.000381,120]
[400309049,1767342076042,-192.05107545,0.000381,120]
[400309050,1767342076117,-1096.78010242,0.000381,120]
[400309051,1767342076198,-200.0,0.00038122,120]
[400309052,1767342076278,-314.99,0.0003813,60]
[400309053,1767342076366,-1310.34,0.0003816,60]
[400309054,1767342076456,-314.99,0.0003823,60]
[400309055,1767342076536,-1310.34,0.0003826,60]
[400309056,1767342076618,-314.99,0.0003833,60]
[400309057,1767342076698,-2000.0,0.00038356,120]
[400309058,1767342076776,-2000.0,0.00038356,120]
[400309059,1767342076852,-151.0,0.00038356,120]
[400309060,1767342076930,-151.0,0.00038356,120]
[400309061,1767342077018,-151.0,0.00038356,120]
[400309062,1767342077100,-151.0,0.00038356,120]
[400309063,1767342077184,-151.0,0.00038356,120]
[400309064,1767342077282,-151.0,0.00038356,120]
[400309065,1767342077371,-151.0,0.00038356,120]
[400309066,1767342077459,-151.0,0.00038356,120]
[400309067,1767342077557,-151.0,0.00038356,120]
[400309068,1767342077656,-151.0,0.00038356,120]
[400309069,1767342077742,-190.088558,0.00038356,120]
[400309070,1767342077830,-1310.34,0.0003836,120]
[400309071,1767342077924,-200.0,0.00038391,120]
[400309072,1767342078025,-314.99,0.0003843,120]
[400309073,1767342078123,-305012.75930809,0.0003844,30]
[400309074,1767342085307,-151.0,0.00032968,31]
[400309075,1767342085402,-151.0,0.00032968,31]
[400309076,1767342085493,-193.38274519,0.00037,120]
[400309077,1767342085620,-1310.34,0.0003846,120]
[400309078,1767342085705,-150.0,0.000385,120]
[400309079,1767342085786,-200.0,0.00038507,120]
[400309080,1767342085866,-314.99,0.0003853,120]
[400309081,1767342085943,-200.0,0.00038554,120]
[400309082,1767342086020,-1310.34,0.0003856,120]
[400309083,1767342086226,-632.64,0.0003863,44]
[400309084,1767342086306,-314.99,0.0003863,120]
[400309085,1767342086390,-1310.34,0.0003866,120]
[400309086,1767342086473,-314.99,0.0003873,120]
[400309087,1767342086561,-200.0,0.0003874,120]
[400309088,1767342086648,-1310.34,0.0003876,120]